bitfinex/quotes_ETHUSD_20250324
["timestamp","ask_amount","ask_price","bid_price","bid_amount"]
[1742828261410,4.80521,2081.1,2080.7,14.11449884]
[1742828261928,4.80521,2081.1,2080.8,4.80581]
[1742828262531,4.80498,2081.2,2080.8,9.61148]
[1742828262825,4.80476,2081.3,2080.7,4.86209335]
[1742828262995,4.80476,2081.3,2080.9,5.35541]
[1742828263196,4.80476,2081.3,2081.0,9.66629]
[1742828263725,4.80445,2081.4,2081.0,9.66624]
[1742828263892,4.80401,2081.6,2081.3,0.55]
[1742828264093,4.80401,2081.6,2081.2,4.80488]
[1742828264094,4.80401,2081.6,2081.4,4.861]
[1742828264526,4.80401,2081.6,2081.1,5.35513]
[1742828264527,4.80446,2081.4,2081.1,0.55]
[1742828264702,4.80446,2081.4,2080.9,4.8056]
[1742828264703,4.80477,2081.3,2081.2,4.861]
[1742828265594,4.80454,2081.4,2081.2,4.861]
[1742828265795,9.60916,2081.4,2081.2,4.861]
[1742828266131,4.80454,2081.4,2081.2,4.861]
[1742828266540,9.60774,2081.7,2081.3,5.40263203]
[1742828266837,9.60773,2081.7,2081.3,5.35459]
[1742828267135,4.80423,2081.5,2081.3,0.55]
[1742828267301,9.60821,2081.6,2081.3,0.55]
[1742828267503,4.80432,2081.5,2081.2,4.861]
[1742828267916,4.80446,2081.4,2081.2,4.861]
[1742828268319,4.80432,2081.5,2081.2,4.861]
[1742828268604,9.6087,2081.5,2081.2,4.861]
[1742828269044,4.80452,2081.4,2081.2,4.861]
[1742828269840,4.80452,2081.4,2081.1,5.75250169]
[1742828270050,4.80452,2081.4,2081.3,4.86]
[1742828272238,4.80357,2081.8,2081.3,9.66464]
[1742828272410,4.80389,2081.7,2081.4,5.35445]
[1742828272611,4.80389,2081.7,2081.4,0.55]
[1742828272841,4.80357,2081.8,2081.4,5.3544]
[1742828273039,11.71052,2081.9,2081.4,5.3544]
[1742828273040,4.80404,2081.6,2081.4,0.55]
[1742828273441,4.80383,2081.7,2081.4,0.55]
[1742828274944,4.80354,2081.8,2081.4,5.35445]
[1742828275441,4.8038,2081.7,2081.4,5.35445]
[1742828275639,4.80262,2082.2,2081.7,4.80373]
[1742828275809,4.80295,2082.1,2081.8,4.90702845]
[1742828276315,4.80267,2082.2,2081.8,9.66238]
[1742828276908,9.60551,2082.2,2081.8,9.66238]
[1742828277144,4.80267,2082.2,2081.8,9.66238]
[1742828277350,4.80261,2082.2,2081.8,9.66238]
[1742828277854,9.6054,2082.2,2081.8,9.66238]
[1742828278026,4.80261,2082.2,2081.8,9.66238]
[1742828278358,10.89241,2082.3,2081.9,4.85121495]
[1742828278521,4.80313,2082.0,2081.8,4.859]
[1742828278849,4.8027,2082.2,2081.8,9.66244]
[1742828279657,9.60553,2082.2,2081.8,9.66244]
[1742828279854,4.80238,2082.3,2081.9,5.35317]
[1742828280262,9.60493,2082.3,2081.9,5.35317]
[1742828280433,4.80238,2082.3,2081.9,5.35317]
[1742828280629,4.80222,2082.4,2082.0,4.80303]
[1742828281063,5.57644,2082.5,2082.1,4.80274]
[1742828281364,5.57644,2082.5,2082.2,4.857]
[1742828281559,4.80204,2082.5,2082.2,4.857]
[1742828282624,4.80226,2082.4,2082.2,4.857]
[1742828283568,4.80307,2082.0,2081.6,11.28874261]
[1742828283750,4.80307,2082.0,2081.7,4.857]
[1742828284667,4.80286,2082.1,2081.8,0.04802843]
[1742828284964,9.60589,2082.1,2081.8,0.55]
[1742828285203,4.80286,2082.1,2081.8,0.55]
[1742828285474,4.80255,2082.3,2081.8,0.55]
[1742828285768,4.80285,2082.1,2081.8,5.35342]
[1742828286127,4.80304,2082.1,2081.8,0.55]
[1742828286424,4.80313,2082.0,2081.8,0.55]
[1742828287167,4.80313,2082.0,2081.7,4.857]
[1742828288030,4.80337,2081.9,2081.6,1.31778696]
[1742828288232,4.80337,2081.9,2081.7,4.856]
[1742828290284,4.80357,2081.8,2081.6,0.55]
[1742828290444,4.80337,2081.9,2081.8,4.855]
[1742828290956,4.80337,2081.9,2081.4,25.398]
[1742828290957,4.80385,2081.7,2081.4,25.398]
[1742828291157,4.80409,2081.6,2081.5,4.855]
[1742828292698,4.80409,2081.6,2081.4,25.398]
[1742828292699,4.80422,2081.5,2081.4,25.398]
[1742828292981,4.80422,2081.5,2081.4,30.253]
[1742828294049,4.80378,2081.7,2081.4,35.05745]
[1742828294279,4.80353,2081.8,2081.5,0.55]
[1742828294445,6.09,2081.9,2081.6,4.80383]
[1742828294646,4.80284,2082.1,2081.7,5.35376]
[1742828294892,10.42391,2082.2,2081.8,9.65843]
[1742828295066,4.80262,2082.2,2081.9,0.04802573]
[1742828295473,4.80262,2082.2,2081.8,9.65842]
[1742828295660,9.60542,2082.2,2081.8,9.65842]
[1742828295860,4.80286,2082.1,2081.8,9.65842]
[1742828296287,4.80286,2082.1,2081.8,4.855]
[1742828297006,4.80367,2081.8,2081.4,30.20238]
[1742828297174,4.80388,2081.7,2081.5,4.855]
[1742828297899,4.80332,2081.9,2081.5,4.855]
[1742828297900,4.80358,2081.8,2081.5,4.855]
[1742828298069,4.80337,2081.9,2081.5,9.65916]
[1742828298273,4.80337,2081.9,2081.6,0.04803273]
[1742828298604,4.80286,2082.1,2081.7,5.35355]
[1742828298797,4.80286,2082.1,2081.7,0.55]
[1742828298798,4.80321,2082.0,2081.7,0.55]
[1742828299507,4.80339,2081.9,2081.7,0.55]
[1742828299806,9.60688,2081.9,2081.6,0.55]
[1742828300096,9.60688,2081.9,2081.6,25.943]
[1742828300700,9.60686,2081.9,2081.6,25.943]
[1742828301001,4.80339,2081.9,2081.6,25.943]
[1742828302060,4.8031,2082.0,2081.6,30.74682]
[1742828302256,4.80331,2081.9,2081.6,30.74682]
[1742828302896,4.80331,2081.9,2081.6,25.943]
[1742828303304,4.80361,2081.8,2081.6,25.943]
[1742828303596,9.60677,2081.9,2081.6,25.943]
[1742828303802,9.60678,2081.9,2081.6,25.943]
[1742828304017,4.80331,2081.9,2081.6,25.943]
[1742828304323,4.80313,2082.0,2081.6,30.74688]
[1742828304621,4.80287,2082.1,2081.8,0.55]
[1742828304822,4.80321,2082.0,2081.9,4.854]
[1742828304990,4.80321,2082.0,2081.6,30.19697]
[1742828304991,4.80334,2081.9,2081.6,25.393]
[1742828305187,4.80334,2081.9,2081.7,4.854]
[1742828305908,4.80334,2081.9,2081.6,25.393]
[1742828305909,4.80363,2081.8,2081.6,25.393]
[1742828306225,4.80363,2081.8,2081.7,4.854]
[1742828306398,4.80333,2081.9,2081.7,4.854]
[1742828306586,9.60679,2081.9,2081.7,4.90203232]
[1742828306787,4.80287,2082.1,2081.7,4.90203232]
[1742828307131,4.80287,2082.1,2081.8,0.55]
[1742828307312,4.80287,2082.1,2081.8,5.35342]
[1742828307511,4.80262,2082.2,2081.8,5.35342]
[1742828307690,4.80262,2082.2,2081.8,5.35341]
[1742828308022,9.60542,2082.2,2081.8,5.35341]
[1742828308187,4.80262,2082.2,2081.8,5.35341]
[1742828308523,4.80262,2082.2,2081.8,10.1568]
[1742828308688,4.80262,2082.2,2081.8,5.35339]
[1742828308892,4.80254,2082.3,2081.9,4.80316]
[1742828309232,9.60509,2082.3,2082.0,0.55]
[1742828309383,4.80254,2082.3,2082.1,4.853]
[1742828310258,4.80261,2082.2,2082.1,4.853]
[1742828311329,4.80254,2082.3,2082.1,4.853]
[1742828312117,4.802,2082.5,2082.1,9.65574]
[1742828312335,4.802,2082.5,2082.2,0.55]
[1742828312647,4.80203,2082.5,2082.2,0.55]
[1742828312819,0.55,2082.6,2082.3,4.80216]
[1742828314123,0.55,2082.6,2082.2,5.3526]
[1742828314124,5.35183,2082.6,2082.2,5.3526]
[1742828314760,5.35183,2082.6,2082.2,10.15508]
[1742828315348,5.35183,2082.6,2082.2,10.52054044]
[1742828315749,5.35183,2082.6,2082.2,5.71794044]
[1742828315925,4.80226,2082.4,2082.2,0.91546044]
[1742828316326,0.7671,2082.5,2082.2,1.88638463]
[1742828316628,5.35171,2082.6,2082.2,6.32335419]
[1742828316956,10.1536,2082.6,2082.2,6.32335419]
[1742828318062,4.80237,2082.4,2082.1,30.60760135]
[1742828318264,4.80231,2082.4,2082.1,30.60760135]
[1742828318561,4.80231,2082.4,2082.1,25.39]
[1742828318853,4.80231,2082.4,2082.2,4.851]
[1742828319056,9.60402,2082.5,2082.2,4.851]
[1742828319543,0.55,2082.6,2082.3,4.8023]
[1742828320265,5.35171,2082.6,2082.3,4.8023]
[1742828320462,0.55,2082.6,2082.3,0.55]
[1742828320617,0.55,2082.6,2082.4,4.80197]
[1742828321461,0.55,2082.6,2082.3,4.80226]
[1742828321669,0.55,2082.6,2082.4,4.80201]
[1742828322469,0.55,2082.6,2082.4,5.74985815]
[1742828322966,0.55,2082.6,2082.5,0.04801335]
[1742828323317,0.55,2082.6,2082.4,5.74985815]
[1742828323519,0.55,2082.6,2082.4,10.55183815]
[1742828323719,0.55,2082.6,2082.4,5.74982815]
[1742828324219,0.55,2082.6,2082.4,0.55]
[1742828325462,0.55,2082.6,2082.5,4.80192]
[1742828325834,0.55,2082.6,2082.4,5.35202]
[1742828326032,0.55,2082.6,2082.4,6.32691688]
[1742828326774,0.55,2082.6,2082.4,1.52489688]
[1742828327582,0.55,2082.6,2082.4,6.32696688]
[1742828328369,0.55,2082.6,2082.4,6.07696688]
[1742828328670,0.55,2082.6,2082.4,5.77696688]
[1742828330076,0.55,2082.6,2082.4,0.97489688]
[1742828330472,0.55,2082.6,2082.4,5.77702688]
[1742828330860,0.55,2082.6,2082.5,4.80192]
[1742828331041,0.55,2082.6,2082.5,5.35192]
[1742828331242,0.55,2082.6,2082.5,8.39993203]
[1742828331681,0.55,2082.6,2082.5,14.47192]
[1742828333333,0.55,2082.6,2082.5,19.31992]
[1742828334765,0.55,2082.6,2082.5,16.31992]
[1742828334946,0.55,2082.6,2082.5,13.19992]
[1742828335146,0.55,2082.6,2082.5,9.64992]
[1742828335342,0.55,2082.6,2082.5,13.19992]
[1742828335687,0.55,2082.6,2082.5,8.35192]
[1742828335847,0.55,2082.6,2082.5,12.64992]
[1742828336276,0.55,2082.6,2082.5,4.848]
[1742828338277,9.60317,2082.7,2082.5,4.848]
[1742828338648,4.80203,2082.5,2082.3,0.97370355]
[1742828338845,4.80238,2082.3,2082.1,25.39]
[1742828339051,5.62691,2082.2,2082.1,25.39]
[1742828339388,5.62691,2082.2,2082.1,30.237]
[1742828345216,4.80376,2081.7,2081.5,25.386]
[1742828345508,4.80376,2081.7,2081.6,4.847]
[1742828346174,4.80399,2081.6,2081.5,25.386]
[1742828346488,4.80399,2081.6,2081.5,30.233]
[1742828348008,4.80382,2081.7,2081.5,30.233]
[1742828348177,4.80399,2081.6,2081.5,30.233]
[1742828349915,5.63199,2081.6,2081.5,30.233]
[1742828356389,7.764925,2081.6,2081.5,30.233]
[1742828357590,7.764925,2081.6,2080.9,28.395]
[1742828357591,0.7836,2081.3,2080.9,28.395]
[1742828357807,0.7836,2081.3,2081.0,4.847]
[1742828357808,4.80528,2081.1,2081.0,4.847]
[1742828358813,4.80528,2081.1,2081.0,5.80880488]
[1742828358979,4.80528,2081.1,2081.0,4.847]
[1742828360202,4.80538,2081.0,2080.9,25.395]
[1742828360383,4.80538,2081.0,2080.9,30.242]
[1742828361316,5.62988,2081.0,2080.9,30.242]
[1742828362985,4.80538,2081.0,2080.9,30.242]
[1742828363726,6.09,2081.2,2080.9,30.242]
[1742828364031,6.09,2081.2,2081.0,4.80536]
[1742828364229,6.09,2081.2,2081.1,4.80515]
[1742828364532,6.09,2081.2,2081.0,0.55]
[1742828365349,6.09,2081.2,2081.0,5.35534]
[1742828366135,6.09,2081.2,2081.0,1.53086664]
[1742828367299,4.80477,2081.3,2081.0,1.53086664]
[1742828368441,4.80477,2081.3,2081.0,6.33622664]
[1742828369643,4.80477,2081.3,2081.0,1.53086664]
[1742828370245,4.80477,2081.3,2081.0,6.33617664]
[1742828370538,0.8259,2081.2,2081.0,0.98086664]
[1742828370838,0.8259,2081.2,2081.1,4.846]
[1742828371342,4.805,2081.2,2081.1,4.846]
[1742828371732,4.80492,2081.2,2081.1,4.846]
[1742828375203,4.80446,2081.4,2081.1,9.65114]
[1742828375405,4.80409,2081.6,2081.2,5.35473]
[1742828375720,4.80409,2081.6,2081.3,4.80468]
[1742828376107,4.80397,2081.7,2081.4,4.85247855]
[1742828376341,4.80397,2081.7,2081.5,4.846]
[1742828376650,4.80392,2081.7,2081.5,4.846]
[1742828377149,5.57169,2082.0,2081.5,4.846]
[1742828377333,4.80396,2081.7,2081.5,4.846]
[1742828377534,4.80399,2081.6,2081.5,4.846]
[1742828377732,4.80355,2081.8,2081.5,4.846]
[1742828377923,9.60683,2081.9,2081.5,9.65007]
[1742828378129,4.80338,2081.9,2081.6,0.04803435]
[1742828378333,4.80338,2081.9,2081.5,9.65007]
[1742828378547,9.60687,2081.9,2081.6,0.04803435]
[1742828378744,0.7877,2082.2,2081.8,4.80338]
[1742828378947,4.80268,2082.2,2081.9,4.845]
[1742828379167,4.80288,2082.1,2081.9,4.845]
[1742828379559,4.80193,2082.5,2082.0,0.55]
[1742828379756,4.80241,2082.3,2082.0,3.55]
[1742828380080,4.80241,2082.3,2081.9,4.80315]
[1742828380386,9.60593,2082.1,2082.0,4.845]
[1742828383167,4.80261,2082.2,2082.0,4.845]
[1742828383641,4.80284,2082.1,2082.0,4.845]
[1742828388136,4.80265,2082.2,2082.0,4.845]
[1742828388971,4.80219,2082.4,2082.0,9.64804]
[1742828389175,5.59094,2082.5,2082.0,9.64804]
[1742828389176,9.60402,2082.5,2082.1,5.35274]
[1742828389343,4.80194,2082.5,2082.1,10.15542]
[1742828389540,0.761,2082.7,2082.3,4.80226]
[1742828389766,9.60317,2082.7,2082.4,4.842]
[1742828389971,4.80154,2082.7,2082.4,4.842]
[1742828390438,4.80125,2082.8,2082.5,5.35191]
[1742828390641,4.80125,2082.8,2082.5,0.55]
[1742828390852,4.80154,2082.7,2082.5,0.55]
[1742828391053,4.8013,2082.8,2082.5,0.55]
[1742828391281,4.8013,2082.8,2082.5,5.35189]
[1742828391875,4.8013,2082.8,2082.5,0.55]
[1742828392253,4.8013,2082.8,2082.5,0.90320466]
[1742828392453,4.80102,2082.9,2082.5,5.70509466]
[1742828392659,4.80102,2082.9,2082.6,0.04801063]
[1742828392874,4.80102,2082.9,2082.5,5.70496466]
[1742828393187,4.80102,2082.9,2082.6,0.04800997]
[1742828393337,4.80131,2082.8,2082.6,0.04800997]
[1742828393543,4.80131,2082.8,2082.5,0.90320466]
[1742828394376,4.80131,2082.8,2082.5,0.55]
[1742828394764,4.80131,2082.8,2082.5,25.937]
[1742828395250,4.80102,2082.9,2082.5,25.937]
[1742828395251,4.80148,2082.7,2082.5,25.937]
[1742828395453,4.80129,2082.8,2082.5,25.937]
[1742828396266,5.56155,2083.1,2082.5,25.937]
[1742828396267,4.80079,2083.0,2082.6,4.84969064]
[1742828396588,5.6185,2083.3,2082.7,0.55]
[1742828396754,4.8003,2083.3,2082.9,4.80087]
[1742828397291,9.60055,2083.3,2082.9,4.80087]
[1742828397466,4.80032,2083.2,2082.9,4.80087]
[1742828397931,4.80025,2083.3,2082.9,4.80087]
[1742828398191,5.56277,2083.5,2083.1,4.8005]
[1742828398377,4.79943,2083.6,2083.2,9.68819696]
[1742828398687,9.59901,2083.6,2083.2,9.6402]
[1742828398891,4.79943,2083.6,2083.2,9.6402]
[1742828399057,4.79943,2083.6,2083.3,0.55]
[1742828399261,4.79917,2083.7,2083.3,5.35005]
[1742828399590,4.79923,2083.7,2083.4,25.385]
[1742828400189,9.59857,2083.7,2083.4,25.385]
[1742828400489,9.59858,2083.7,2083.4,25.385]
[1742828400675,4.79944,2083.6,2083.4,25.385]
[1742828400992,4.79903,2083.8,2083.4,30.18474]
[1742828401589,4.79917,2083.7,2083.4,30.18474]
[1742828401788,4.79917,2083.7,2083.4,25.385]
[1742828401955,5.5657,2083.9,2083.4,25.385]
[1742828401956,4.79899,2083.8,2083.4,30.18476]
[1742828402158,5.5657,2083.9,2083.4,30.18483]
[1742828402367,4.7987,2083.9,2083.5,4.79944]
[1742828402572,4.79902,2083.8,2083.6,4.839]
[1742828403098,5.56155,2083.7,2083.6,4.839]
[1742828405092,5.56155,2083.7,2083.4,25.385]
[1742828405298,4.79961,2083.5,2083.4,25.385]
[1742828405515,4.8008,2083.0,2082.7,31.498]
[1742828405710,4.8008,2083.0,2082.8,4.837]
[1742828406011,10.37388,2083.1,2082.8,4.837]
[1742828406417,4.80062,2083.1,2082.8,4.837]
[1742828406798,4.80032,2083.2,2083.0,0.55]
[1742828407115,0.7933,2083.3,2082.8,4.837]
[1742828407305,4.80099,2082.9,2082.8,4.837]
[1742828407505,4.80099,2082.9,2082.8,5.777281]
[1742828407812,4.80122,2082.8,2082.7,25.378]
[1742828408011,4.80122,2082.8,2082.7,30.215]
[1742828409594,4.80099,2082.9,2082.7,30.215]
[1742828410021,5.55207,2083.4,2082.8,0.59801037]
[1742828410321,4.79965,2083.5,2083.2,4.80029]
[1742828410536,4.79952,2083.6,2083.3,4.837]
[1742828410737,4.79949,2083.6,2083.3,4.88499639]
[1742828411032,4.79915,2083.7,2082.8,14.47111]
[1742828411248,4.80076,2083.0,2082.9,4.837]
[1742828411410,4.80122,2082.8,2082.3,6.12]
[1742828411596,4.80122,2082.8,2082.7,30.215]
[1742828411995,4.80122,2082.8,2082.7,25.378]
[1742828412200,4.80122,2082.8,2082.7,30.215]
[1742828412809,2.900401,2082.8,2082.7,4.837]
[1742828413028,7.701621,2082.8,2082.7,4.837]
[1742828414317,4.80238,2082.3,2081.3,31.498]
[1742828414520,4.80307,2082.1,2081.6,5.7456646]
[1742828414744,4.80333,2081.9,2081.6,0.9417646]
[1742828414946,4.80398,2081.7,2081.5,0.36898838]
[1742828415120,4.80407,2081.6,2081.3,25.378]
[1742828415449,9.60795,2081.7,2081.4,4.836]
[1742828415608,4.80397,2081.7,2081.4,4.836]
[1742828415803,9.6079,2081.7,2081.5,0.97397072]
[1742828416032,4.80393,2081.7,2081.5,0.97397072]
[1742828416246,4.80399,2081.6,2081.5,0.97397072]
[1742828416649,4.80393,2081.7,2081.5,0.97397072]
[1742828417249,4.80393,2081.7,2081.4,5.198203]
[1742828417651,4.80393,2081.7,2081.4,6.15407756]
[1742828417948,0.7772,2081.9,2081.4,6.15407756]
[1742828418135,4.80286,2082.1,2081.6,4.80386]
[1742828418317,4.80321,2082.0,2081.6,4.80386]
[1742828418514,9.60585,2082.1,2081.7,4.80373]
[1742828418746,9.60638,2082.0,2081.8,4.837]
[1742828418947,4.80287,2082.1,2081.8,4.837]
[1742828419310,6.883,2082.5,2081.9,4.80308]
[1742828419532,6.09,2082.5,2082.2,4.80258]
[1742828419825,4.80111,2082.9,2082.0,4.85094483]
[1742828419826,10.89127,2082.8,2082.3,35.02521]
[1742828420040,4.80172,2082.6,2082.3,30.223]
[1742828420209,6.09,2082.8,2082.3,30.223]
[1742828420576,4.80197,2082.5,2082.3,30.223]
[1742828420779,5.56007,2082.7,2082.3,30.223]
[1742828420780,4.80175,2082.6,2082.3,30.223]
[1742828421081,0.7586,2082.7,2082.3,30.223]
[1742828421082,4.80215,2082.4,2082.3,30.223]
[1742828421281,4.80192,2082.5,2082.3,30.223]
[1742828421442,9.60361,2082.6,2082.3,30.223]
[1742828422277,4.80194,2082.5,2082.3,30.223]
[1742828422771,4.80215,2082.4,2082.3,30.223]
[1742828423375,4.80197,2082.5,2082.3,30.223]
[1742828423957,9.6041,2082.5,2082.3,30.223]
[1742828424158,4.80215,2082.4,2082.3,30.223]
[1742828424541,4.80197,2082.5,2082.3,30.223]
[1742828424975,4.80171,2082.6,2082.3,30.223]
[1742828425279,4.80195,2082.5,2082.3,30.223]
[1742828425481,4.80195,2082.5,2082.3,30.58674541]
[1742828426083,4.80215,2082.4,2082.3,30.223]
[1742828426760,4.80171,2082.6,2082.3,30.223]
[1742828427149,9.60359,2082.6,2082.3,30.223]
[1742828427362,9.60358,2082.6,2082.3,30.223]
[1742828427882,4.80088,2083.0,2082.6,4.80168]
[1742828428096,6.9199,2083.1,2082.7,9.63736]
[1742828428278,4.80045,2083.2,2082.7,9.63736]
[1742828428468,0.8188,2083.3,2082.9,4.80077]
[1742828428674,4.79985,2083.4,2083.0,4.80075]
[1742828428985,4.79985,2083.4,2083.1,4.836]
[1742828429148,4.80009,2083.3,2083.1,4.836]
[1742828429481,4.79985,2083.4,2083.1,4.836]
[1742828429846,4.79985,2083.4,2083.1,9.6365]
[1742828430146,4.79985,2083.4,2083.1,4.836]
[1742828431285,6.09,2083.7,2083.1,4.836]
[1742828431286,4.79948,2083.6,2083.1,4.836]
[1742828431486,4.79948,2083.6,2083.2,30.18217]
[1742828431808,4.79962,2083.5,2083.2,25.382]
[1742828432086,4.79944,2083.6,2083.2,30.18222]
[1742828432250,4.79944,2083.6,2083.2,30.18213]
[1742828433264,4.79944,2083.6,2083.2,30.54181213]
[1742828433704,4.79984,2083.4,2083.2,25.382]
[1742828434009,4.80007,2083.3,2083.2,25.382]
[1742828434206,4.80007,2083.3,2083.2,30.216]
[1742828436018,5.61717,2083.3,2083.2,4.834]
[1742828436222,7.138835,2083.3,2083.2,4.834]
[1742828437686,13.228835,2083.3,2083.2,4.834]
[1742828438623,4.80145,2082.7,2082.6,25.379]
[1742828438924,4.80145,2082.7,2082.6,30.213]
[1742828440489,10.89145,2082.7,2082.6,25.379]
[1742828440689,4.80264,2082.2,2082.0,25.378]
[1742828441024,4.80264,2082.2,2082.1,4.833]
[1742828443215,4.80284,2082.1,2082.0,25.378]
[1742828443414,4.80376,2081.7,2081.4,25.381]
[1742828443616,4.80376,2081.7,2081.5,4.834]
[1742828444132,4.80399,2081.6,2081.5,4.834]
[1742828445348,4.80381,2081.7,2081.5,4.834]
[1742828445520,9.60777,2081.7,2081.5,4.834]
[1742828446148,4.80381,2081.7,2081.5,4.834]
[1742828446350,7.128418,2082.1,2081.6,3.04803792]
[1742828446351,6.09,2082.1,2081.6,3.04803792]
[1742828446551,4.80203,2082.5,2082.0,4.80299]
[1742828446870,0.8019,2082.7,2082.1,9.6846729]
[1742828447056,4.80202,2082.5,2082.1,4.834]
[1742828447212,4.80227,2082.4,2082.1,4.834]
[1742828447550,4.80202,2082.5,2082.1,10.61559501]
[1742828447703,9.60407,2082.5,2082.1,10.97470929]
[1742828448185,0.7594,2083.2,2082.3,3.0]
[1742828448448,4.80075,2083.1,2082.7,4.80134]
[1742828448654,4.80075,2083.1,2082.8,4.834]
[1742828448955,4.80031,2083.2,2082.8,9.63508]
[1742828450025,9.60084,2083.2,2082.8,9.63508]
[1742828450237,4.80053,2083.1,2082.8,4.834]
[1742828450540,4.80031,2083.2,2082.8,9.63521]
[1742828451361,9.60082,2083.2,2082.8,9.63521]
[1742828451634,4.80059,2083.1,2082.8,4.834]
[1742828453957,4.80122,2082.8,2082.7,0.35366879]
[1742828454158,4.80122,2082.8,2082.7,4.833]
[1742828455792,4.80099,2082.9,2082.7,4.833]
[1742828456112,4.80122,2082.8,2082.7,4.833]
[1742828457298,4.80192,2082.5,2082.4,25.385]
[1742828457592,4.80192,2082.5,2082.4,30.217]
[1742828459057,4.80192,2082.5,2082.4,4.832]
[1742828464779,0.7739,2082.6,2082.4,4.832]
[1742828464979,6.09,2082.8,2082.4,9.63406]
[1742828465215,4.80106,2082.9,2082.5,4.80183]
[1742828465915,4.80106,2082.9,2082.5,9.60365]
[1742828466081,4.80124,2082.8,2082.5,4.80182]
[1742828466281,4.80124,2082.8,2082.5,0.55]
[1742828466577,4.80124,2082.8,2082.4,9.63402]
[1742828466780,9.60327,2082.7,2082.4,4.832]
[1742828467619,4.8017,2082.6,2082.4,4.832]
[1742828467802,4.80192,2082.5,2082.4,4.832]
[1742828468118,4.80169,2082.6,2082.1,0.36441654]
[1742828468323,4.80292,2082.1,2081.8,25.381]
[1742828468478,4.80292,2082.1,2081.9,4.832]
[1742828468678,4.80292,2082.1,2081.9,7.832]
[1742828469123,4.80261,2082.2,2081.8,25.381]
[1742828469308,4.8033,2081.9,2081.8,25.381]
[1742828469509,4.8033,2081.9,2081.8,30.213]
[1742828469718,4.8031,2082.0,2081.8,25.381]
[1742828469921,4.8031,2082.0,2081.9,4.832]
[1742828472993,4.8031,2082.0,2081.8,25.381]
[1742828472994,4.8033,2081.9,2081.8,25.381]
[1742828473231,5.763894,2081.9,2081.8,30.213]
[1742828473440,4.8033,2081.9,2081.8,30.213]
[1742828474257,4.8033,2081.9,2081.8,25.381]
[1742828474422,4.8033,2081.9,2081.8,30.213]
[1742828475243,4.8033,2081.9,2081.8,25.381]
[1742828475410,4.8033,2081.9,2081.8,30.213]
[1742828476157,4.80432,2081.5,2081.3,0.96450287]
[1742828476310,4.80445,2081.4,2081.2,25.389]
[1742828476644,4.80445,2081.4,2081.3,4.832]
[1742828477651,4.80468,2081.3,2081.2,25.389]
[1742828477857,4.80468,2081.3,2081.2,30.221]
[1742828478316,4.80445,2081.4,2081.2,30.221]
[1742828479151,9.60905,2081.4,2081.2,30.221]
[1742828479314,4.80468,2081.3,2081.2,30.221]
[1742828480149,4.80451,2081.4,2081.2,30.221]
[1742828480939,4.80377,2081.7,2081.2,30.221]
[1742828481115,4.80401,2081.6,2081.3,0.55]
[1742828482259,4.80449,2081.4,2081.2,30.221]
[1742828482427,9.60915,2081.4,2081.2,30.221]
[1742828482628,4.80449,2081.4,2081.2,30.221]
[1742828483335,4.80468,2081.3,2081.2,25.389]
[1742828483548,4.80468,2081.3,2081.2,30.222]
[1742828483753,4.80468,2081.3,2081.2,25.389]
[1742828483959,4.80468,2081.3,2081.2,30.222]
[1742828484452,4.8045,2081.4,2081.2,30.222]
[1742828484756,9.60917,2081.4,2081.2,30.222]
[1742828485062,4.8045,2081.4,2081.2,30.222]
[1742828485237,4.80468,2081.3,2081.2,30.222]
[1742828485870,4.8045,2081.4,2081.2,30.222]
[1742828486572,9.60913,2081.4,2081.2,30.222]
[1742828486884,4.8051,2081.2,2080.7,7.80591]
[1742828487093,4.80557,2081.0,2080.8,4.833]
[1742828487391,4.80557,2081.0,2080.7,3.95467138]
[1742828487558,4.80557,2081.0,2080.9,4.833]
[1742828488376,4.80557,2081.0,2080.7,0.36334077]
[1742828488563,4.80584,2080.8,2080.6,25.395]
[1742828488762,4.80584,2080.8,2080.7,4.833]
[1742828488999,4.80585,2080.8,2080.7,4.833]
[1742828490187,4.80544,2081.0,2080.7,4.833]
[1742828490568,6.09,2081.1,2080.8,4.80581]
[1742828490763,6.09,2081.1,2080.7,4.833]
[1742828491005,4.80554,2081.0,2080.7,4.833]
[1742828491202,4.80563,2080.9,2080.7,4.833]
[1742828491595,4.80584,2080.8,2080.7,4.833]
[1742828492164,4.80607,2080.7,2080.6,25.395]
[1742828492314,4.80607,2080.7,2080.6,30.228]
[1742828493180,5.59557,2080.7,2080.6,25.395]
[1742828493419,5.59557,2080.7,2080.6,30.228]
[1742828494598,4.80692,2080.4,2080.2,6.47746594]
[1742828494804,4.80723,2080.2,2080.1,0.01]
[1742828495029,5.56736,2080.3,2080.1,4.843]
[1742828495209,4.80723,2080.2,2080.1,4.843]
[1742828495820,6.09,2080.4,2080.1,9.6504]
[1742828496033,6.09,2080.4,2080.2,4.80717]